bitfinex-derivatives/quotes_SOLF0:USTF0_20240907
["timestamp","ask_amount","ask_price","bid_price","bid_amount"]
[1725721172231,1.3139,127.83,127.75,24.07]
[1725721172438,0.34022462,127.82,127.75,24.07]
[1725721172740,3.98387395,127.82,127.75,27.9959153]
[1725721173134,3.98387395,127.82,127.76,3.9135]
[1725721173135,3.9127,127.8,127.76,3.9135]
[1725721173840,3.9127,127.8,127.77,3.9134]
[1725721174044,3.9123,127.81,127.77,3.9134]
[1725721174947,1.3139,127.83,127.77,24.07]
[1725721175438,5.2257,127.83,127.79,3.9126]
[1725721176134,3.9119,127.82,127.78,13.533]
[1725721176334,28.99886548,127.97,127.72,130.87658858]
[1725721176540,3.9109,127.86,127.82,9.62]
[1725721176735,3.82073428,127.88,127.82,9.62]
[1725721176932,0.33954134,127.87,127.82,9.62]
[1725721177138,3.9107,127.86,127.82,9.62]
[1725721177945,3.9107,127.86,127.82,13.5319]
[1725721179143,3.9105,127.87,127.82,13.5319]
[1725721179337,0.33948088,127.86,127.82,13.5319]
[1725721179941,3.9107,127.86,127.82,13.5319]
[1725721181042,3.9106,127.87,127.82,13.5319]
[1725721181236,0.33951187,127.86,127.83,3.9116]
[1725721182239,0.33951187,127.86,127.82,13.5318]
[1725721182440,3.9106,127.87,127.82,13.5318]
[1725721183136,9.62,127.89,127.82,9.62]
[1725721183343,4.18401867,127.88,127.82,9.62]
[1725721183544,0.33943674,127.87,127.82,9.62]
[1725721183935,3.84458193,127.88,127.82,9.62]
[1725721184140,4.25004713,127.87,127.83,3.9115]
[1725721184341,3.9106,127.87,127.82,9.62]
[1725721184741,3.9107,127.86,127.82,13.5318]
[1725721186143,31.72986112,127.96,127.73,9.3248]
[1725721186347,3.10739624,127.92,127.81,1.297]
[1725721186645,4.29442647,127.91,127.86,9.62]
[1725721186846,0.33949624,127.9,127.86,9.62]
[1725721188254,3.95493023,127.91,127.86,9.62]
[1725721188444,4.24880961,127.9,127.86,9.62]
[1725721188644,3.9096,127.9,127.86,9.62]
[1725721189547,3.9096,127.9,127.86,13.5306]
[1725721191442,230.6596,128.06,127.89,9.62]
[1725721191646,230.6596,128.06,127.82,0.1954]
[1725721191647,2.6665,127.98,127.92,9.62]
[1725721191846,3.9078,127.96,127.92,9.62]
[1725721192246,23.56,128.05,127.94,9.62]
[1725721192448,0.33845371,128.04,127.93,3.97668596]
[1725721192749,9.62,128.0,127.92,9.62]
[1725721192953,8.25972523,127.99,127.92,13.58768893]
[1725721193255,3.9072,127.98,127.93,3.9085]
[1725721193648,3.9073,127.97,127.92,9.62]
[1725721193853,7.92127152,127.99,127.92,9.62]
[1725721194454,4.0193,127.99,127.92,9.62]
[1725721194851,7.90310639,127.99,127.92,9.62]
[1725721195048,3.9076,127.97,127.92,13.5288]
[1725721195649,3.9076,127.97,127.91,3.88849792]
[1725721195650,7.90310639,127.99,127.91,13.50849792]
[1725721195857,0.33833021,127.98,127.91,9.62]
[1725721196051,0.33833021,127.98,127.95,9.62]
[1725721196260,4.0069591,128.01,127.82,7.8238]
[1725721196457,0.3382348,128.0,127.96,9.62]
[1725721196652,3.9069,127.99,127.96,9.62]
[1725721197048,4.0234,128.04,127.96,9.62]
[1725721197356,9.95823794,128.03,127.96,9.62]
[1725721197545,9.95823794,128.03,127.95,3.83355484]
[1725721197546,4.24450015,128.02,127.95,3.83355484]
[1725721197752,0.33823794,128.01,127.95,9.62]
[1725721198051,0.33823794,128.01,127.94,3.96841529]
[1725721198246,3.907,127.99,127.93,27.9283]
[1725721198555,51.54997889,128.03,127.93,31.8720886]
[1725721198751,0.33817192,128.02,127.93,7.8520886]
[1725721199147,24.02,128.01,127.91,24.02]
[1725721199344,0.33817192,128.0,127.91,27.91101712]
[1725721199643,0.33817192,128.0,127.91,31.81991712]
[1725721199847,3.9077,127.96,127.91,31.81991712]
[1725721200044,242.5056,128.06,127.91,24.02]
[1725721200248,3.9986,128.05,127.96,27.9275]
[1725721200461,3.906,128.02,127.96,27.9275]
[1725721200653,0.33806079,128.01,127.96,27.9275]
[1725721200853,3.906,128.02,127.97,3.9073]
[1725721201251,3.9986,128.05,127.96,24.02]
[1725721201448,0.33801533,128.04,127.98,3.907]
[1725721201855,3.9059,128.02,127.97,3.9072]
[1725721202052,3.9986,128.05,127.96,24.02]
[1725721202359,0.33801751,128.04,127.96,24.02]
[1725721202561,3.9062,128.01,127.96,27.9274]
[1725721203454,3.9058,128.02,127.97,3.9071]
[1725721203953,28.0186,128.05,127.96,24.02]
[1725721204152,24.02,128.03,127.91,3.99843627]
[1725721204361,24.02,128.01,127.92,24.02]
[1725721204561,3.9073,127.97,127.92,3.84671885]
[1725721204751,1.3629,128.0,127.91,3.9089]
[1725721205058,3.9079,127.96,127.91,3.9089]
[1725721205254,23.56,128.07,127.9,24.02]
[1725721205458,1.3918,128.04,127.94,24.02]
[1725721205661,0.33836373,128.03,127.95,3.84945478]
[1725721205856,3.9062,128.01,127.95,7.75715478]
[1725721206056,1.3918,128.04,127.95,7.75715478]
[1725721206263,0.33812704,128.03,127.95,7.75715478]
[1725721206449,0.33812704,128.03,127.95,3.84945478]
[1725721206960,3.9067,127.99,127.95,3.84945478]
[1725721207362,24.02,128.03,127.93,3.9084]
[1725721207564,3.9072,127.98,127.94,3.81682942]
[1725721208449,3.9068,127.99,127.94,7.72502942]
[1725721208655,2.6079,128.01,127.94,3.81682942]
[1725721208853,2.6079,128.01,127.92,24.02]
[1725721209059,3.9071,127.98,127.94,3.9082]
[1725721209252,24.02,128.06,127.73,10.91348966]
[1725721209253,344.0,128.12,127.97,24.02]
[1725721209448,2.6613,128.07,127.97,24.02]
[1725721209666,0.33802835,128.06,128.0,24.02]
[1725721210158,0.33802835,128.06,128.0,27.95498984]
[1725721210364,4.0,128.1,128.0,27.95498984]
[1725721210365,3.88263791,128.09,128.0,27.95498984]
[1725721210556,0.33762909,128.08,128.0,24.02]
[1725721210757,4.0,128.1,128.01,3.906]
[1725721210758,3.9046,128.06,128.01,3.906]
[1725721211157,47.58,128.09,127.98,24.02]
[1725721211364,24.02,128.07,127.98,24.02]
[1725721211656,0.3376753,128.06,127.98,27.90771683]
[1725721212161,3.9054,128.04,127.99,3.9065]
[1725721212458,24.02,128.07,127.98,27.90771683]
[1725721212665,0.33774196,128.06,127.98,27.90771683]
[1725721212865,0.33774196,128.06,127.98,24.02]
[1725721213160,1.68384196,128.06,127.98,27.84012814]
[1725721213363,0.33774196,128.05,127.98,27.84012814]
[1725721214266,0.33774196,128.05,127.99,3.9067]
[1725721214763,4.0,128.1,128.02,24.02]
[1725721214968,0.33753552,128.09,128.04,24.02]
[1725721215156,4.24162932,128.08,128.04,24.02]
[1725721215360,7.82706079,128.1,128.04,27.9251]
[1725721215361,4.0,128.1,128.04,27.9251]
[1725721215557,0.33739499,128.09,128.04,27.9251]
[1725721215762,4.24119499,128.09,128.04,27.9251]
[1725721215960,3.9038,128.09,128.04,27.9251]
[1725721216766,3.904,128.08,128.04,24.02]
[1725721216967,4.0,128.1,128.02,24.02]
[1725721217157,0.3373641,128.09,128.02,24.02]
[1725721217874,3.9043,128.07,128.02,27.9257]
[1725721218061,3.9043,128.07,128.02,24.02]
[1725721218369,3.9049,128.05,128.02,24.02]
[1725721218965,3.9047,128.06,128.02,24.02]
[1725721219370,4.0,128.1,128.02,24.02]
[1725721219561,0.33735942,128.09,128.02,24.02]
[1725721219764,3.9043,128.07,128.02,24.02]
[1725721220372,3.9046,128.06,128.02,24.02]
[1725721222266,3.9049,128.05,128.02,24.02]
[1725721224273,4.0,128.1,128.02,24.02]
[1725721224470,0.33742188,128.09,128.02,24.02]
[1725721224870,3.9053,128.04,128.02,24.02]
[1725721225277,4.0,128.1,128.03,24.02]
[1725721225476,4.0,128.1,128.06,24.02]
[1725721225676,4.0,128.1,128.06,27.91969533]
[1725721225973,3.9039,128.09,128.06,27.91969533]
[1725721226179,4.0,128.1,128.06,27.91969533]
[1725721226478,3.9039,128.09,128.06,24.02]
[1725721226980,4.0,128.1,128.06,24.02]
[1725721227381,3.9037,128.09,128.06,24.02]
[1725721228184,3.904,128.08,128.06,24.02]
[1725721228377,4.0,128.1,128.04,24.02]
[1725721228772,3.9046,128.06,128.04,24.02]
[1725721229579,4.0,128.1,128.02,24.02]
[1725721230178,3.905,128.05,128.02,24.02]
[1725721230877,4.0,128.1,128.02,24.02]
[1725721231177,1.3754,128.09,128.02,24.02]
[1725721231679,3.905,128.05,128.02,24.02]
[1725721232382,3.9047,128.06,128.02,24.02]
[1725721232877,4.0,128.1,128.02,27.9257]
[1725721233078,4.0,128.1,128.02,24.02]
[1725721233277,5.3383,128.1,128.02,24.02]
[1725721234178,0.33719533,128.09,128.0,24.02]
[1725721234380,47.91719533,128.09,128.0,24.02]
[1725721234679,24.02,128.05,127.96,160.56174614]
[1725721234876,2.7539,128.04,127.97,3.84335304]
[1725721235071,2.7539,128.04,127.96,160.56174614]
[1725721235072,2.7539,128.04,127.96,24.02]
[1725721235276,4.0,128.1,127.98,24.02]
[1725721235481,0.33743873,128.09,128.03,24.02]
[1725721235683,6.7539,128.1,128.04,24.02]
[1725721237288,3.9041,128.08,128.04,24.02]
[1725721238686,3.9039,128.09,128.04,27.9249]
[1725721239396,4.0,128.1,128.06,24.02]
[1725721240082,7.9033,128.1,128.06,24.02]
[1725721240578,7.9033,128.1,128.0,24.02]
[1725721240579,23.56,128.25,128.08,24.02]
[1725721240779,0.33647722,128.17,128.12,24.02]
[1725721241181,0.33647722,128.17,128.13,24.02]
[1725721241388,26.7059,128.23,128.13,24.02]
[1725721241584,23.89636584,128.22,128.13,24.02]
[1725721241779,3.9014,128.17,128.13,24.02]
[1725721242381,3.9015,128.16,128.12,24.02]
[1725721242687,23.56,128.22,128.12,24.02]
[1725721242891,47.91640481,128.21,128.12,24.02]
[1725721243084,0.33640481,128.2,128.12,24.02]
[1725721243487,24.02,128.18,128.1,3.81957155]
[1725721243690,2.643,128.17,128.08,24.02]
[1725721243883,0.33650766,128.16,128.08,29.99]
[1725721244093,3.902,128.15,128.08,33.93176348]
[1725721244288,29.99,128.21,128.1,29.99]
[1725721244587,32.633,128.21,128.1,29.99]
[1725721244797,0.33630766,128.2,128.1,29.99]
[1725721244992,242.5056,128.29,128.09,29.99]
[1725721245293,3.04363249,128.27,128.18,29.99]
[1725721245484,0.33603249,128.26,128.19,3.81259841]
[1725721245683,3.899,128.25,128.19,7.71309841]
[1725721245883,0.33603249,128.24,128.19,3.81259841]
[1725721246085,3.899,128.25,128.19,3.81259841]
[1725721246289,3.899,128.25,128.18,29.99]
[1725721246490,3.8986,128.26,128.2,3.9002]
[1725721246690,0.30970289,128.25,128.2,3.9002]
[1725721247091,3.8988,128.25,128.19,7.84963882]
[1725721247390,3.90232497,128.29,128.18,29.99]
[1725721247590,0.30968166,128.28,128.18,33.87359943]
[1725721247787,0.30968166,128.27,128.18,33.87359943]
[1725721247987,0.30968166,128.26,128.18,33.87359943]
[1725721248187,29.99,128.29,128.19,3.9006]
[1725721248388,3.05212563,128.28,128.19,3.9006]
[1725721248589,0.30962563,128.27,128.19,3.9006]
[1725721248989,0.30962563,128.27,128.18,33.87359943]
[1725721249499,0.30962563,128.27,128.19,3.9005]
[1725721249693,0.30962563,128.27,128.18,33.87359943]
[1725721249694,0.30962563,128.27,128.2,29.99]
[1725721249896,31.398,128.35,128.23,29.99]
[1725721250086,0.30930317,128.34,128.23,29.99]
[1725721250287,29.99,128.33,128.23,29.99]
[1725721250492,0.30930317,128.32,128.23,29.99]
[1725721250693,0.30930317,128.32,128.2,29.99]
[1725721251295,0.30930317,128.32,128.2,33.89145899]
[1725721251600,0.30930317,128.31,128.2,33.89145899]
[1725721251801,0.30925658,128.3,128.23,3.8991]
[1725721251999,0.30925658,128.29,128.2,33.89145899]
[1725721252191,1.4021,128.31,128.2,33.89145899]
[1725721252498,0.30930428,128.3,128.18,29.99]
[1725721253090,0.30930428,128.3,128.23,3.8993]
[1725721253401,33.89305755,128.38,128.25,29.99]
[1725721253606,2.7971,128.36,128.25,29.99]
[1725721253792,0.30873262,128.35,128.27,3.8979]
[1725721253992,0.30873262,128.35,128.27,7.88363623]
[1725721254194,0.30873262,128.35,128.25,29.99]
[1725721254893,0.30873262,128.35,128.26,3.8985]
[1725721255492,0.30873262,128.35,128.25,7.83451703]
[1725721255899,0.30888648,128.34,128.25,7.83451703]
[1725721256102,0.30888648,128.33,128.25,7.83451703]
[1725721256299,29.99,128.34,128.24,29.99]
[1725721256601,0.30889551,128.33,128.24,33.889]
[1725721256794,0.30889551,128.33,128.24,37.88074348]
[1725721258301,0.30889551,128.33,128.23,3.8993]
[1725721258610,0.30889551,128.33,128.23,7.8130569]
[1725721258904,0.30889551,128.33,128.23,3.8993]
[1725721259093,0.30889551,128.33,128.22,3.8996]
[1725721259404,0.30889551,128.33,128.22,7.7194968]
[1725721259902,29.99,128.31,128.21,29.99]
[1725721260099,2.7339,128.3,128.21,29.99]
[1725721260399,344.0,128.44,128.19,29.99]
[1725721260593,29.99,128.35,128.24,29.99]
[1725721260794,0.30928319,128.34,128.24,33.8889]
[1725721260995,0.30928319,128.34,128.24,33.83524838]
[1725721261207,0.30928319,128.34,128.24,29.99]
[1725721261394,0.30928319,128.34,128.23,3.8991]
[1725721261705,29.99,128.33,128.23,7.86447582]
[1725721262004,0.30928319,128.32,128.23,3.8991]
[1725721262510,0.30928319,128.32,128.24,29.99]
[1725721262699,29.99,128.37,128.24,29.99]
[1725721263004,0.30894958,128.36,128.24,29.99]
[1725721263195,29.99,128.34,128.22,33.83494848]
[1725721263396,0.30894958,128.33,128.22,29.99]
[1725721263592,0.30894958,128.33,128.23,3.82895874]
[1725721263993,29.99,128.32,128.2,29.99]
[1725721264197,29.99,128.3,128.2,37.71671878]
[1725721264413,29.99,128.3,128.18,29.99]
[1725721264605,29.99,128.3,128.18,33.8906]
[1725721264798,29.99,128.28,128.18,29.99]
[1725721265406,29.99,128.28,128.18,33.8907]
[1725721265603,29.99,128.26,128.12,127.22140871]
[1725721265792,53.55,128.3,128.12,127.22140871]
[1725721265793,2.6478,128.3,128.2,29.99]
[1725721266000,0.30925919,128.29,128.21,3.92027028]
[1725721266310,0.30925919,128.29,128.2,29.99]
[1725721266503,2.6478,128.3,128.2,29.99]
[1725721267001,2.6478,128.3,128.21,3.90544589]
[1725721267209,2.6478,128.3,128.22,3.8997]
[1725721267407,2.6478,128.3,128.2,29.99]
[1725721267600,0.3092217,128.29,128.2,29.99]
[1725721268403,32.6378,128.3,128.2,29.99]
[1725721268604,7.804,128.45,128.2,29.99]
[1725721268808,29.99,128.35,128.22,29.99]
[1725721269012,0.30918823,128.34,128.22,29.99]
[1725721269207,0.30918823,128.34,128.26,3.8983]
[1725721269505,0.30918823,128.34,128.22,29.99]
[1725721269698,0.30918823,128.34,128.29,29.99]
[1725721269899,1.3771,128.41,128.31,29.99]
[1725721270108,0.30857459,128.4,128.31,29.99]
[1725721270403,0.30857459,128.4,128.34,29.99]
[1725721270603,2.7775,128.47,128.34,29.99]
[1725721270807,0.3080119,128.46,128.36,3.8952]
[1725721271005,0.3080119,128.46,128.34,29.99]
[1725721271408,29.99,128.42,128.31,33.97627892]
[1725721271712,29.99,128.42,128.19,7.801]
[1725721271713,0.3080119,128.41,128.19,7.801]
[1725721271908,3.8951,128.38,128.3,29.99]
[1725721272109,2.7504,128.41,128.31,3.83239192]
[1725721272310,3.8948,128.38,128.31,3.83239192]
[1725721272503,3.8948,128.38,128.31,3.81135195]
[1725721272907,3.8952,128.37,128.31,3.81135195]
[1725721273108,2.7504,128.41,128.31,3.81135195]
[1725721273309,0.30824753,128.4,128.31,3.81135195]
[1725721273605,0.30824753,128.4,128.3,29.99]
[1725721273914,0.30824753,128.4,128.31,3.96369693]
[1725721274112,3.8943,128.4,128.35,29.99]
[1725721274315,2.6194,128.45,128.35,29.99]
[1725721274607,30.29804412,128.44,128.32,33.8864]
[1725721274818,0.30804412,128.43,128.32,29.99]
[1725721275211,3.8945,128.4,128.32,33.96499618]
[1725721276211,3.8945,128.4,128.34,3.896]
[1725721276412,3.8945,128.39,128.34,3.896]
[1725721276912,29.99,128.44,128.34,3.896]
[1725721276913,3.8942,128.4,128.34,3.896]
[1725721277215,3.8942,128.4,128.34,33.886]
[1725721277412,29.99,128.44,128.34,29.99]
[1725721277620,0.30798964,128.43,128.34,29.99]
[1725721278013,3.8948,128.39,128.34,29.99]
[1725721278214,29.99,128.44,128.32,29.99]
[1725721278415,29.99,128.44,128.23,29.99]
[1725721278416,29.99,128.42,128.3,33.79464427]
[1725721278717,29.99,128.42,128.3,29.99]
[1725721278718,3.8957,128.36,128.3,29.99]
[1725721278913,53.55,128.42,128.3,29.99]
[1725721279116,53.55,128.42,128.29,3.81360554]
[1725721279117,29.99,128.39,128.29,3.81360554]
[1725721279322,2.603,128.38,128.28,29.99]
[1725721279521,2.603,128.38,128.28,33.96101223]
[1725721279816,31.3443,128.47,128.3,29.99]
[1725721280016,29.99,128.43,128.3,33.97231122]
[1725721280216,3.8953,128.37,128.31,3.8967]
[1725721280717,29.99,128.43,128.3,33.97231122]
[1725721280918,4.19681423,128.42,128.3,37.86951122]
[1725721281118,3.8888023,128.42,128.3,37.86951122]
[1725721281320,3.8958,128.35,128.3,37.86951122]
[1725721281823,53.55,128.43,128.3,29.99]
[1725721281824,29.99,128.41,128.3,29.99]
[1725721282021,3.8959,128.35,128.3,29.99]
[1725721282216,1.334,128.4,128.3,29.99]
[1725721282417,3.8962,128.34,128.3,29.99]
[1725721282919,1.4048,128.39,128.3,29.99]
[1725721283120,1.2842,128.38,128.28,29.99]
[1725721283626,3.897,128.31,128.28,29.99]
[1725721284719,29.99,128.37,128.26,29.99]
[1725721284921,29.99,128.34,128.24,29.99]
[1725721285227,3.8978,128.29,128.24,29.99]
[1725721285422,3.8978,128.29,128.24,33.90439931]
[1725721285922,3.898,128.28,128.24,3.91439931]
[1725721286130,31.3507,128.32,128.22,29.99]
[1725721286332,31.3507,128.32,128.22,37.82212004]
[1725721286529,3.8976,128.29,128.22,33.92272004]
[1725721286720,31.3507,128.32,128.22,33.92272004]
[1725721287032,31.3507,128.32,128.23,3.8991]
[1725721287630,3.8979,128.28,128.23,3.8991]
[1725721289922,3.8979,128.28,128.24,33.889]
[1725721290530,1.3126,128.37,128.27,29.99]
[1725721290724,0.30847124,128.36,128.28,29.99]
[1725721291026,3.8962,128.34,128.29,3.8974]
[1725721291237,1.3126,128.37,128.28,29.99]
[1725721292128,3.8955,128.36,128.31,3.8968]
[1725721292326,132.15990126,128.39,128.28,29.99]
[1725721293322,0.30823645,128.38,128.28,29.99]
[1725721293523,0.30823645,128.38,128.3,3.897]
[1725721293723,0.30823645,128.38,128.3,7.80148397]
[1725721294632,132.15990126,128.39,128.3,7.80148397]
[1725721294834,0.30823588,128.38,128.3,7.80148397]
[1725721295033,0.30823588,128.38,128.3,3.897]
[1725721295624,3.8959,128.35,128.3,3.897]
[1725721295927,1.3447,128.37,128.28,29.99]
[1725721296124,3.8962,128.34,128.28,29.99]
[1725721296326,3.8962,128.34,128.29,3.8973]
[1725721296832,3.8965,128.33,128.28,33.8877]
[1725721297330,3.8962,128.34,128.29,3.8975]
[1725721297527,1.3447,128.37,128.28,29.99]
[1725721297826,0.30842121,128.36,128.28,29.99]
[1725721298531,3.8966,128.33,128.28,33.8879]
[1725721300231,3.8967,128.32,128.28,29.99]
[1725721300535,562.9456,128.46,128.28,29.99]
[1725721300733,2.6249,128.4,128.31,29.99]
[1725721300924,0.30819892,128.39,128.31,29.99]
[1725721301125,0.30819892,128.39,128.31,33.8868]
[1725721301629,3.8955,128.36,128.31,33.8868]
[1725721302322,3.8952,128.37,128.33,3.8962]
[1725721302522,3.8952,128.37,128.31,29.99]
[1725721302729,2.6249,128.4,128.31,29.99]
[1725721303031,3.8953,128.37,128.32,3.8965]
[1725721303225,2.6249,128.4,128.31,29.99]
[1725721303426,3.8959,128.35,128.31,3.897]
[1725721303627,3.8959,128.35,128.29,29.99]
[1725721304530,3.8961,128.34,128.3,3.8971]
[1725721304730,32.6149,128.4,128.29,29.99]
[1725721304929,0.30829893,128.39,128.29,29.99]
[1725721305424,0.30829893,128.39,128.29,33.8873]
[1725721305629,0.30829893,128.39,128.29,29.99]
[1725721305827,0.30829893,128.39,128.2,7.8006]
[1725721305828,3.8969,128.32,128.27,29.99]
[1725721306130,3.8969,128.32,128.27,33.79622028]
[1725721306326,3.8971,128.31,128.27,29.99]
[1725721307728,29.99,128.35,128.26,3.94613765]
[1725721308036,0.30861461,128.34,128.25,33.8886]
[1725721308335,3.8974,128.3,128.25,33.8886]
[1725721308625,3.8976,128.29,128.25,37.73811267]
[1725721310733,6.61036881,128.34,128.25,37.73811267]
[1725721311033,0.30865413,128.33,128.25,37.73811267]
[1725721311535,3.8977,128.29,128.25,37.73811267]
[1725721311736,29.99,128.33,128.25,3.84951267]
[1725721311923,0.30879238,128.32,128.23,29.99]
[1725721312329,0.30879238,128.32,128.24,3.8988]
[1725721313034,3.8977,128.29,128.24,3.8988]
[1725721313836,3.8975,128.3,128.25,3.8987]
[1725721314535,3.8976,128.29,128.25,3.8987]
[1725721316931,3.8979,128.28,128.25,3.8987]
[1725721317434,3.8979,128.28,128.24,3.8989]
[1725721317638,29.99,128.31,128.23,3.9621023]
[1725721317936,29.99,128.31,128.23,3.8992]
[1725721318239,29.99,128.31,128.23,7.76248185]
[1725721318735,29.99,128.29,128.12,135.02690871]
[1725721318935,29.99,128.25,128.13,6.77204962]
[1725721319132,29.99,128.25,128.15,29.99]
[1725721319331,29.99,128.25,128.17,3.901]
[1725721319638,1.311,128.27,128.15,33.95428014]
[1725721319639,29.99,128.24,128.15,33.95428014]
[1725721320031,3.9005,128.2,128.16,3.9013]
[1725721320231,29.99,128.22,128.15,3.96428014]
[1725721320428,29.99,128.22,128.12,127.22140871]
[1725721320628,29.99,128.2,128.12,127.22140871]
[1725721320935,2.7862,128.21,128.12,127.22140871]
[1725721321140,3.9011,128.18,128.13,3.9024]
[1725721321439,29.99,128.2,128.12,127.22140871]
[1725721321937,31.301,128.2,128.12,127.22140871]
[1725721322329,29.99,128.18,128.06,29.99]
[1725721322741,29.99,128.18,128.08,3.9039]
[1725721323132,29.99,128.16,128.06,33.87481348]
[1725721323338,29.99,128.16,128.06,7.78921348]
[1725721323533,29.99,128.16,128.06,3.88481348]
[1725721323844,29.99,128.16,128.04,29.99]
[1725721324141,29.99,128.16,128.06,29.99]
[1725721324641,3.9027,128.13,128.07,3.9042]
[1725721324830,3.9027,128.13,128.06,29.99]
[1725721325035,3.9027,128.13,128.07,3.9041]
[1725721326235,3.84618386,128.17,128.06,29.99]
[1725721326438,31.301,128.2,128.08,29.99]
[1725721326636,0.31006956,128.19,128.08,29.99]
[1725721326837,3.9019,128.15,128.1,3.9033]
[1725721327341,3.9016,128.16,128.11,3.903]
[1725721328327,31.301,128.2,128.11,3.903]
[1725721328540,3.9018,128.15,128.1,3.9033]
[1725721328843,29.99,128.18,128.08,29.99]
[1725721329032,29.99,128.18,128.09,3.9035]
[1725721329342,29.99,128.18,128.08,29.99]
[1725721329529,3.9018,128.15,128.08,29.99]
[1725721329731,3.9018,128.15,128.1,3.9031]
[1725721330840,3.9018,128.15,128.11,3.903]
[1725721332533,3.9018,128.15,128.1,3.9032]
[1725721334835,3.9022,128.14,128.09,3.9035]
[1725721335243,3.81246096,128.17,128.06,29.99]
[1725721335442,53.43,128.18,128.08,3.9038]
[1725721336045,53.43,128.18,128.07,3.9041]
[1725721336543,3.9027,128.13,128.06,29.99]
[1725721336937,3.9027,128.13,128.08,3.9039]
[1725721337347,3.9028,128.12,128.08,3.9039]
[1725721337748,3.9032,128.11,128.04,33.8142793]
[1725721338051,3.9032,128.11,128.04,29.99]
[1725721338546,1.2927,128.14,128.04,33.9202725]
[1725721339241,3.9032,128.11,128.04,33.9202725]
[1725721339745,3.9032,128.11,128.07,3.9042]
[1725721340139,1.2927,128.14,128.07,3.9042]
[1725721340842,3.9028,128.12,128.07,3.9042]
[1725721341043,1.2927,128.14,128.04,33.9202725]
[1725721341233,29.99,128.13,128.04,3.9302725]
[1725721341434,29.99,128.13,128.03,29.99]
[1725721341633,29.99,128.13,128.04,3.91019183]
[1725721341841,3.9032,128.11,128.04,3.9902467]
[1725721342048,29.99,128.13,128.06,3.9044]
[1725721342346,29.99,128.13,128.04,3.89808598]
[1725721342536,29.99,128.13,128.05,3.9047]
[1725721343146,3.9038,128.09,128.05,3.9047]
[1725721343739,3.9031,128.11,128.07,3.9042]
[1725721344337,29.99,128.13,128.04,3.89808598]
[1725721344542,29.99,128.13,128.03,29.99]
[1725721344735,3.9029,128.12,128.03,33.88517976]
[1725721344939,29.99,128.13,128.05,29.99]
[1725721345747,29.99,128.13,128.02,29.99]
[1725721345949,1.2927,128.14,128.02,29.99]
[1725721345950,3.9045,128.07,128.02,7.73242957]
[1725721346444,3.9045,128.07,128.03,3.9054]
[1725721346649,2.6802,128.09,128.01,23.99]
[1725721347145,2.6802,128.09,128.01,27.79808209]
[1725721347445,3.9049,128.05,128.02,3.9056]
[1725721347640,2.6802,128.09,128.01,27.79808209]
[1725721348041,3.9044,128.07,128.03,3.9053]
[1725721348438,2.6802,128.09,128.03,3.9053]
[1725721349544,2.6802,128.09,128.02,3.9057]
[1725721349745,29.99,128.08,128.0,3.98500351]
[1725721349953,31.3201,128.08,127.97,29.99]
[1725721350140,31.3201,128.08,128.01,3.9059]
[1725721350348,3.9051,128.05,128.01,3.9059]
[1725721351756,31.3201,128.08,128.02,3.9055]
[1725721352447,31.3201,128.08,127.93,3.82940533]
[1725721352647,31.3201,128.08,127.96,29.99]